bitfinex/quotes_SOLUSD_20240708
["timestamp","ask_amount","ask_price","bid_price","bid_amount"]
[1720446811925,7.1241,140.37,140.29,0.51]
[1720446812093,0.2,140.39,140.32,0.17]
[1720446812299,0.2,140.39,140.32,0.51]
[1720446812714,7.323,140.39,140.32,0.51]
[1720446813120,0.2,140.39,140.32,100.34]
[1720446813325,0.2,140.39,140.33,0.17]
[1720446813508,20.2,140.39,140.32,0.17]
[1720446813838,20.2,140.39,140.28,6.331]
[1720446814028,20.2,140.39,140.28,106.331]
[1720446814330,7.1242,140.37,140.28,106.331]
[1720446814732,20.0,140.36,140.28,106.331]
[1720446815108,20.0,140.36,140.29,0.34]
[1720446815307,20.0,140.36,140.29,0.17]
[1720446815507,7.1263,140.33,140.26,15.2838]
[1720446815839,20.0,140.32,140.26,15.2838]
[1720446816130,20.0,140.32,140.24,6.03]
[1720446816340,27.1261,140.33,140.24,106.03]
[1720446816538,20.0,140.33,140.24,106.03]
[1720446817034,27.126,140.34,140.24,106.03]
[1720446817215,27.126,140.34,140.26,100.0]
[1720446817216,20.0,140.34,140.26,100.0]
[1720446817404,20.0,140.35,140.28,100.0]
[1720446817607,0.2,140.39,140.3,100.0]
[1720446817827,0.2,140.39,140.31,0.34]
[1720446818207,7.323,140.39,140.31,0.34]
[1720446818407,7.323,140.39,140.32,0.17]
[1720446818928,0.2,140.39,140.33,100.0]
[1720446819135,0.2,140.39,140.34,0.51]
[1720446819934,0.2,140.39,140.37,0.17]
[1720446820116,0.2,140.39,140.37,0.51]
[1720446820311,0.2,140.39,140.38,101.59135847]
[1720446820514,0.2,140.39,140.38,0.51]
[1720446821638,0.2,140.39,140.38,0.17]
[1720446821818,0.2,140.39,140.38,0.34]
[1720446822017,0.2,140.39,140.38,0.51]
[1720446822238,0.2,140.39,140.38,100.51]
[1720446822546,0.2,140.39,140.33,6.3456]
[1720446822853,0.2,140.39,140.34,100.17]
[1720446823007,0.2,140.39,140.36,100.0]
[1720446823214,0.2,140.39,140.38,100.0]
[1720446823511,0.2,140.39,140.38,0.17]
[1720446823707,0.2,140.39,140.34,100.0]
[1720446824013,0.2,140.39,140.33,106.3456]
[1720446824710,0.2,140.39,140.33,6.3456]
[1720446825213,20.2,140.39,140.33,106.3456]
[1720446825639,0.2,140.39,140.34,1.42092481]
[1720446825920,20.0,140.38,140.34,1.42092481]
[1720446826138,0.2,140.39,140.35,100.51]
[1720446826312,0.2,140.39,140.38,100.17]
[1720446826513,0.2,140.39,140.38,100.51]
[1720446826939,0.2,140.39,140.38,0.34]
[1720446827136,0.2,140.39,140.34,100.0]
[1720446827633,0.2,140.39,140.35,1.26164068]
[1720446828442,0.2,140.39,140.36,0.17]
[1720446828645,0.2,140.39,140.36,0.34]
[1720446828846,0.2,140.39,140.37,0.17]
[1720446829035,0.2,140.39,140.35,1.76421581]
[1720446829458,0.2,140.39,140.36,0.17]
[1720446829760,0.2,140.39,140.36,1.59411434]
[1720446829938,0.2,140.39,140.37,0.34]
[1720446830125,0.2,140.39,140.37,0.17]
[1720446830334,0.2,140.39,140.31,100.0]
[1720446830555,7.3231,140.39,140.31,100.0]
[1720446830853,20.0,140.38,140.28,109.278346]
[1720446831058,20.0,140.38,140.31,100.0]
[1720446831355,0.2,140.39,140.31,100.0]
[1720446831544,0.2,140.39,140.34,0.17]
[1720446832949,0.2,140.39,140.31,100.0]
[1720446833456,0.2,140.39,140.34,100.0]
[1720446833760,0.2,140.39,140.32,100.0]
[1720446834133,20.2,140.39,140.33,0.51]
[1720446834734,20.0,140.38,140.33,0.51]
[1720446834966,0.2,140.39,140.3,0.17]
[1720446835333,7.1237,140.38,140.3,0.17]
[1720446835865,20.0,140.37,140.33,0.17]
[1720446836360,0.2,140.39,140.33,0.34]
[1720446837064,0.2,140.39,140.34,0.17]
[1720446838057,0.2,140.39,140.35,0.17]
[1720446838346,0.2,140.39,140.37,0.17]
[1720446838567,0.2,140.39,140.38,100.17]
[1720446838734,0.2,140.39,140.38,0.51]
[1720446840354,0.2,140.39,140.38,0.17]
[1720446840560,0.2,140.39,140.33,0.17]
[1720446840761,0.2,140.39,140.33,0.34]
[1720446840934,0.2,140.39,140.37,0.17]
[1720446841139,0.2,140.39,140.38,100.0]
[1720446841461,0.2,140.39,140.38,100.51]
[1720446841834,0.2,140.39,140.38,0.51]
[1720446842039,0.2,140.39,140.38,100.51]
[1720446842260,0.2,140.39,140.38,0.51]
[1720446842560,0.2,140.39,140.38,0.17]
[1720446842861,0.2,140.39,140.36,100.0]
[1720446843074,0.2,140.39,140.35,1.42435572]
[1720446843646,0.2,140.39,140.32,100.0]
[1720446843870,20.2,140.39,140.3,100.0]
[1720446844047,7.1246,140.36,140.28,100.0]
[1720446844249,20.0,140.35,140.28,100.0]
[1720446845270,20.0,140.35,140.26,100.0]
[1720446845567,7.1263,140.33,140.26,100.0]
[1720446845769,20.0,140.32,140.26,100.0]
[1720446846690,20.0,140.35,140.28,100.0]
[1720446847364,20.0,140.36,140.29,0.51]
[1720446847566,20.0,140.36,140.31,0.17]
[1720446847757,6.5881,140.37,140.33,0.17]
[1720446848270,7.1263,140.33,140.26,0.17]
[1720446848450,7.1251,140.35,140.26,0.17]
[1720446848958,6.5881,140.37,140.28,0.17]
[1720446849349,20.0,140.36,140.28,0.17]
[1720446849545,20.0,140.36,140.28,0.34]
[1720446849765,6.5881,140.37,140.3,0.17]
[1720446849968,16.8115,140.39,140.32,0.17]
[1720446850169,16.8115,140.39,140.32,0.51]
[1720446850471,7.1269,140.32,140.26,0.17]
[1720446850777,38.51,140.32,140.22,100.0]
[1720446851082,7.1272,140.31,140.22,100.0]
[1720446851246,27.1276,140.3,140.2,106.0625]
[1720446851946,7.1296,140.26,140.17,16.5916]
[1720446852148,20.0,140.25,140.16,106.0713]
[1720446852351,27.1302,140.25,140.16,106.0713]
[1720446852656,27.1302,140.25,140.15,100.0]
[1720446852657,20.0,140.25,140.15,100.0]
[1720446852856,7.1297,140.26,140.15,100.0]
[1720446853057,20.0,140.25,140.15,100.0]
[1720446853468,7.1309,140.24,140.15,100.0]
[1720446853657,20.0,140.23,140.15,100.0]
[1720446854356,20.0,140.24,140.15,100.0]
[1720446854556,20.0,140.24,140.19,100.0]
[1720446854790,20.0,140.26,140.2,0.85734087]
[1720446855075,13.6607,140.3,140.21,0.17]
[1720446855279,13.6607,140.3,140.21,0.85727972]
[1720446855280,6.5328,140.3,140.21,0.85727972]
[1720446855577,6.5328,140.3,140.22,0.34]
[1720446855758,7.129,140.28,140.22,1.60460721]
[1720446855966,7.1296,140.26,140.22,0.17]
[1720446856163,27.1303,140.25,140.2,0.17]
[1720446856564,7.1308,140.24,140.15,100.0]
[1720446856770,47.13,140.27,140.15,121.45]
[1720446856771,20.0,140.23,140.15,121.45]
[1720446856978,20.0,140.23,140.17,100.0]
[1720446857177,20.0,140.23,140.17,121.45]
[1720446857352,47.13,140.27,140.2,100.0]
[1720446857554,6.5328,140.3,140.2,100.0]
[1720446857778,13.6607,140.3,140.2,100.0]
[1720446857982,6.5328,140.3,140.21,0.34]
[1720446858183,6.5328,140.3,140.17,0.17]
[1720446858184,47.13,140.27,140.17,0.17]
[1720446858358,7.1302,140.25,140.18,0.17]
[1720446858563,47.13,140.27,140.18,1.42609148]
[1720446858777,47.13,140.27,140.19,0.34]
[1720446858975,54.2591,140.27,140.2,0.17]
[1720446859177,20.0,140.26,140.2,1.59605526]
[1720446859381,20.0,140.26,140.22,0.17]
[1720446859594,6.5328,140.3,140.21,0.17]
[1720446859879,6.5328,140.3,140.2,0.34]
[1720446860082,6.5328,140.3,140.24,0.17]
[1720446860286,6.5328,140.3,140.25,0.17]
[1720446860486,7.1291,140.27,140.17,100.0]
[1720446860783,47.13,140.28,140.18,0.36491223]
[1720446860969,47.13,140.28,140.17,100.0]
[1720446860970,47.13,140.28,140.15,100.0]
[1720446861380,7.1301,140.25,140.15,121.45]
[1720446861572,20.0,140.24,140.15,121.45]
[1720446861882,27.1307,140.24,140.15,100.0]
[1720446862083,20.0,140.24,140.15,100.0]
[1720446862493,20.0,140.24,140.17,100.0]
[1720446862685,20.0,140.27,140.17,100.0]
[1720446862869,27.1294,140.27,140.17,100.0]
[1720446863289,27.1294,140.27,140.18,0.51]
[1720446863595,7.1297,140.26,140.18,0.51]
[1720446863795,27.1302,140.25,140.18,0.51]
[1720446863982,7.1313,140.23,140.14,100.0]
[1720446864287,7.1322,140.21,140.13,16.2561]
[1720446864598,20.0,140.22,140.13,16.2561]
[1720446864599,20.0,140.2,140.13,16.2561]
[1720446864795,27.1317,140.22,140.13,16.2561]
[1720446865986,27.1317,140.22,140.14,0.17]
[1720446866295,7.1328,140.2,140.13,0.34]
[1720446866499,20.0,140.19,140.13,1.42357527]
[1720446866668,7.1338,140.18,140.08,106.5921]
[1720446866865,20.0,140.19,140.08,106.5921]
[1720446867069,7.1337,140.18,140.08,106.5921]
[1720446867279,20.0,140.17,140.08,106.5921]
[1720446867595,20.0,140.17,140.08,100.0]
[1720446867791,20.0,140.19,140.06,100.0]
[1720446867990,7.1348,140.16,140.06,100.0]
[1720446868190,20.0,140.15,140.06,100.0]
[1720446868378,20.0,140.15,140.06,121.45]
[1720446868580,20.0,140.15,140.08,121.45]
[1720446868783,20.0,140.17,140.12,100.0]
[1720446868987,15.9566,140.23,140.14,121.45]
[1720446869175,13.5042,140.26,140.16,100.0]
[1720446869380,13.5042,140.26,140.14,36.5045]
[1720446869381,6.3746,140.26,140.17,1.42621169]
[1720446869592,7.1301,140.25,140.17,1.42621169]
[1720446869789,13.5042,140.26,140.18,0.34]
[1720446870100,7.1302,140.25,140.18,0.17]
[1720446870296,7.132,140.22,140.17,1.42621169]
[1720446870518,6.3746,140.26,140.17,1.42625209]
[1720446870803,7.1315,140.23,140.18,1.59666788]
[1720446870979,20.0,140.22,140.18,0.17]
[1720446871175,20.0,140.24,140.18,0.17]
[1720446871488,7.1312,140.23,140.18,0.17]
[1720446871701,20.0,140.22,140.14,1.42652513]
[1720446872005,7.1334,140.19,140.14,1.42652513]
[1720446872174,20.0,140.18,140.13,0.34]
[1720446872489,20.0,140.18,140.09,121.2655]
[1720446872490,7.1343,140.17,140.11,1.42642338]
[1720446872693,27.1348,140.16,140.11,1.42642338]
[1720446872900,20.0,140.16,140.11,1.42642338]
[1720446873293,20.0,140.18,140.11,1.42642338]
[1720446873682,27.1337,140.18,140.11,1.42642338]
[1720446874085,27.1337,140.18,140.02,155.7084]
[1720446874086,69.6376,140.17,140.05,106.3451]
[1720446874285,7.1364,140.13,140.05,106.3451]
[1720446874510,20.0,140.12,140.05,106.3451]
[1720446875216,7.136,140.14,140.05,106.3451]
[1720446875410,20.0,140.13,140.05,106.3451]
[1720446875585,27.1353,140.15,140.05,106.3451]
[1720446875913,20.0,140.15,140.07,100.0]
[1720446876211,20.0,140.15,140.1,0.17]
[1720446876428,6.89311986,140.17,140.1,1.59697153]
[1720446876726,7.1335,140.19,140.1,1.59697153]
[1720446876908,22.8378,140.22,140.11,0.17]
[1720446877104,7.1331,140.2,140.12,0.17]
[1720446877290,7.1333,140.19,140.12,0.17]
[1720446877606,7.1327,140.2,140.11,0.34]
[1720446877986,45.39605526,140.21,140.12,100.17]
[1720446878392,52.52825526,140.21,140.13,0.34]
[1720446879115,45.39605526,140.21,140.13,0.17]
[1720446879285,7.1333,140.19,140.13,0.17]
[1720446879694,20.0,140.18,140.13,0.17]
[1720446879911,20.0,140.18,140.13,0.34]
[1720446880112,20.0,140.2,140.14,100.0]
[1720446880318,20.0,140.2,140.15,1.3882469]
[1720446880508,45.39605526,140.21,140.15,1.3882469]
[1720446880827,256.1,140.23,140.16,100.17]
[1720446881113,262.80422597,140.23,140.17,1.38851782]
[1720446881314,6.70422597,140.23,140.17,0.34]
[1720446881490,22.1386,140.26,140.17,0.17]
[1720446881688,7.1316,140.22,140.17,0.17]
[1720446881889,20.0,140.21,140.17,0.17]
[1720446882616,27.1322,140.21,140.17,0.17]
[1720446883005,27.1322,140.21,140.14,6.2527]
[1720446883204,27.1322,140.21,140.1,100.0]
[1720446883205,38.62,140.2,140.1,106.2196]
[1720446883407,20.0,140.19,140.13,100.0]
[1720446883605,20.0,140.19,140.14,1.06851122]
[1720446884241,20.0,140.19,140.12,100.0]
[1720446884409,20.0,140.19,140.15,0.17]
[1720446884604,20.0,140.22,140.15,0.17]
[1720446884921,27.1316,140.22,140.15,0.51]
[1720446885494,20.0,140.22,140.15,0.34]
[1720446885694,20.0,140.23,140.15,0.17]
[1720446885900,7.1328,140.2,140.15,0.17]
[1720446886107,27.1332,140.19,140.15,0.17]
[1720446886313,7.134,140.18,140.1,106.2196]
[1720446886503,20.0,140.17,140.1,106.2196]
[1720446886704,27.1342,140.17,140.1,6.2196]
[1720446886915,7.1347,140.16,140.1,6.2196]
[1720446887124,7.1352,140.15,140.06,106.0061]
[1720446887307,20.0,140.17,140.06,106.0061]
[1720446887308,20.0,140.14,140.06,6.0061]
[1720446887501,7.1361,140.14,140.06,6.0061]
[1720446887723,20.0,140.13,140.06,6.0061]
[1720446887905,20.0,140.13,140.07,1.4273652]
[1720446888528,27.1362,140.13,140.07,1.4273652]
[1720446888742,27.1362,140.13,140.06,6.0061]
[1720446888945,27.1362,140.13,140.01,21.65]
[1720446888946,20.0,140.13,140.02,106.6142]
[1720446889431,20.0,140.14,140.02,106.6142]
[1720446890520,20.0,140.14,140.07,100.0]
[1720446890709,7.38842805,140.16,140.08,0.17]
[1720446890915,20.0,140.15,140.08,0.17]
[1720446891112,27.1344,140.17,140.08,0.97578132]
[1720446891340,27.1344,140.17,140.08,0.17]
[1720446891507,27.1344,140.17,140.08,0.34]
[1720446892807,7.1347,140.16,140.08,0.34]
[1720446893007,20.0,140.15,140.08,0.34]
[1720446893205,27.1343,140.17,140.08,0.34]
[1720446893932,6.75160221,140.18,140.11,0.17]
[1720446894236,7.1329,140.2,140.11,0.51]
[1720446894419,45.61053033,140.21,140.13,100.0]
[1720446894614,45.61053033,140.21,140.14,0.17]
[1720446894811,45.61053033,140.21,140.14,0.70735306]
[1720446895035,28.5704,140.25,140.15,100.17]
[1720446895340,7.1306,140.24,140.16,0.7072764]
[1720446895730,7.1303,140.25,140.16,0.7072764]
[1720446895936,25.81770184,140.27,140.16,0.7072764]
[1720446895937,7.1307,140.24,140.16,0.7072764]
[1720446897026,7.1307,140.24,140.17,1.17513485]
[1720446897344,32.67452864,140.27,140.18,0.17]
[1720446897525,7.1311,140.23,140.18,0.17]
[1720446897722,17.8255,140.25,140.18,0.17]
[1720446897931,7.1312,140.23,140.18,0.17]
[1720446898240,20.0,140.22,140.18,0.17]
[1720446898446,20.0,140.22,140.17,1.40587792]
[1720446898745,7.1316,140.22,140.17,1.40587792]
[1720446899141,20.0,140.21,140.17,1.40587792]
[1720446899450,20.0,140.21,140.17,0.17]
[1720446899623,20.0,140.21,140.16,0.17]
[1720446899826,20.0,140.22,140.16,0.17]
[1720446900024,20.0,140.22,140.15,1.23587792]
[1720446900244,38.62,140.24,140.15,1.23587792]
[1720446900245,20.0,140.23,140.15,1.23587792]
[1720446900430,20.0,140.23,140.16,1.23578973]
[1720446900635,7.1319,140.22,140.14,1.23578974]
[1720446900927,20.0,140.21,140.15,101.23570156]
[1720446901133,20.0,140.23,140.15,101.23570156]
[1720446901452,20.0,140.23,140.16,0.17]
[1720446901627,38.62,140.24,140.17,0.17]
[1720446901949,38.62,140.24,140.17,1.2354371]
[1720446902126,38.62,140.24,140.18,1.41190253]
[1720446902328,38.62,140.24,140.13,100.0]
[1720446902538,7.1317,140.22,140.14,0.51]
[1720446902850,38.62,140.24,140.12,100.0]
[1720446903051,17.828,140.23,140.1,106.1121]
[1720446903237,7.1335,140.19,140.1,106.1121]
[1720446903439,27.1337,140.18,140.1,106.1121]
[1720446903741,20.0,140.17,140.1,106.1121]
[1720446903939,20.0,140.17,140.13,0.17]
[1720446904246,27.1318,140.22,140.13,0.34]
[1720446904556,20.0,140.22,140.14,0.17]
[1720446904752,7.1316,140.22,140.14,100.17]
[1720446905051,27.1321,140.21,140.15,0.17]
[1720446905237,20.0,140.2,140.14,0.17]
[1720446905438,20.0,140.2,140.13,0.34]
[1720446905624,20.0,140.2,140.12,0.17]
[1720446905826,7.1337,140.18,140.1,6.1121]
[1720446906029,20.0,140.17,140.1,6.1121]
[1720446906333,15.5043,140.19,140.08,100.0]
[1720446906651,7.1353,140.15,140.06,6.181]
[1720446906826,27.1358,140.14,140.06,6.181]
[1720446907148,20.0,140.14,140.06,6.181]
[1720446907652,7.1367,140.12,140.06,6.181]
[1720446907822,20.0,140.11,140.02,6.2758]
[1720446908022,20.0,140.11,140.03,100.0]
[1720446909646,20.0,140.12,140.06,100.0]
[1720446909859,20.0,140.15,140.06,100.0]
[1720446910022,27.1354,140.15,140.06,100.0]
[1720446910225,27.1354,140.15,140.07,0.17]
[1720446910424,7.1363,140.13,140.07,0.17]
[1720446910644,20.0,140.12,140.07,0.17]
[1720446911221,20.0,140.13,140.07,0.17]
[1720446911424,7.1381,140.1,140.02,106.2758]
[1720446911655,20.0,140.09,140.02,106.2758]
[1720446911952,20.0,140.09,140.01,15.9449]
[1720446911953,20.0,140.09,140.01,0.2]
[1720446912150,7.1396,140.07,139.98,106.2278]
[1720446912455,20.0,140.06,139.99,1.42390556]
[1720446912751,20.0,140.09,140.01,100.0]
[1720446913053,20.0,140.1,140.02,1.42360048]
[1720446913257,27.1373,140.11,140.02,1.42360048]
[1720446913431,7.1378,140.1,140.02,1.42360048]
[1720446913626,20.0,140.09,140.04,0.17]
[1720446913826,20.0,140.09,140.04,1.59764233]
[1720446914042,20.0,140.09,140.05,0.17]
[1720446914231,20.0,140.12,140.05,0.17]
[1720446914442,26.6128268,140.12,140.05,0.17]
[1720446915049,7.1374,140.11,140.05,0.17]
[1720446915249,20.0,140.1,140.05,0.17]
[1720446915433,20.0,140.1,140.0,100.0]
[1720446915633,7.1384,140.09,140.0,100.0]
[1720446915829,7.1379,140.1,140.0,100.0]
[1720446916055,6.6128268,140.12,140.11,100.0]
[1720446916245,6.4894,140.21,140.11,100.0]
[1720446916561,6.4894,140.21,140.13,100.0]
[1720446916867,6.62494684,140.21,140.16,0.17]
[1720446917026,13.6195,140.25,140.16,1.93275146]
[1720446917232,13.6195,140.25,140.16,0.17]
[1720446917233,7.1306,140.24,140.16,0.17]
[1720446917561,6.4894,140.25,140.16,0.34]
[1720446917732,6.4894,140.25,140.16,1.76633546]
[1720446917926,6.67885765,140.25,140.18,0.17]
[1720446918145,45.7486,140.28,140.18,1.76613196]
[1720446918370,0.2,140.29,140.22,100.0]
[1720446918686,0.2,140.29,140.24,100.0]
[1720446918842,0.2,140.29,140.25,1.76542047]
[1720446919979,0.2,140.29,140.25,0.17]
[1720446920149,0.2,140.29,140.23,0.17]
[1720446920353,0.2,140.29,140.23,0.34]
[1720446920846,0.2,140.29,140.24,100.0]
[1720446921048,0.2,140.29,140.25,0.51]
[1720446921479,0.2,140.29,140.26,122.3224]
[1720446921647,0.2,140.29,140.27,0.34]
[1720446922051,0.2,140.29,140.27,0.17]
[1720446922776,0.2,140.29,140.27,0.34]
[1720446922953,0.2,140.29,140.28,100.17]
[1720446923152,0.2,140.29,140.28,100.51]
[1720446923868,0.02,140.29,140.28,100.51]
[1720446924178,0.02,140.29,140.28,101.9341679]
[1720446924364,0.02,140.29,140.28,100.51]
[1720446925486,20.0,140.36,140.32,100.0]
[1720446925688,0.2,140.39,140.33,0.34]
[1720446925866,0.2,140.39,140.34,100.0]
[1720446926063,0.2,140.39,140.35,0.17]
[1720446926386,0.2,140.39,140.35,0.59329006]
[1720446926579,0.2,140.39,140.36,100.34]
[1720446926780,0.2,140.39,140.37,0.59322974]
[1720446927176,0.2,140.39,140.37,1.59439779]
[1720446928164,0.2,140.39,140.37,0.17]
[1720446928382,0.2,140.39,140.34,100.0]
[1720446928586,0.2,140.39,140.35,0.34]
[1720446929360,0.2,140.39,140.35,0.17]
[1720446930006,0.2,140.39,140.35,0.34]
[1720446930393,0.2,140.39,140.35,0.17]
[1720446930787,0.2,140.39,140.32,100.0]
[1720446930983,0.2,140.39,140.33,0.17]
[1720446931204,0.2,140.39,140.34,100.0]
[1720446931394,0.2,140.39,140.35,0.17]
[1720446931582,0.2,140.39,140.34,100.0]
[1720446931779,0.2,140.39,140.31,6.0843]
[1720446932081,7.3231,140.39,140.31,6.0843]
[1720446932305,20.0,140.38,140.31,6.0843]
[1720446932815,20.0,140.38,140.31,106.0843]
[1720446933011,0.2,140.39,140.33,100.0]
[1720446933728,0.2,140.39,140.35,100.0]
[1720446934018,0.2,140.39,140.36,0.34]
[1720446934195,0.2,140.39,140.37,0.17]
[1720446934520,0.2,140.39,140.36,0.17]
[1720446934819,0.2,140.39,140.37,100.0]
[1720446935022,0.2,140.39,140.38,0.51]
[1720446935312,0.2,140.49,140.43,0.17]
[1720446935518,0.2,140.49,140.44,100.0]
[1720446935725,0.2,140.49,140.45,0.34]
[1720446936301,0.2,140.49,140.46,0.17]
[1720446936524,0.2,140.49,140.44,0.34]
[1720446936843,0.2,140.49,140.44,100.34]
[1720446937020,0.2,140.49,140.44,0.34]
[1720446937326,0.2,140.49,140.44,100.34]
[1720446937614,0.2,140.49,140.44,0.34]
[1720446938000,0.2,140.49,140.44,100.34]
[1720446938536,20.2,140.49,140.45,0.17]
[1720446938825,20.2,140.49,140.45,30.17]
[1720446939021,20.2,140.49,140.46,0.17]
[1720446939197,0.2,140.49,140.46,0.17]
[1720446939400,0.2,140.49,140.46,1.76303404]
[1720446939727,0.2,140.49,140.46,0.34]
[1720446939925,0.2,140.49,140.46,30.17]
[1720446940111,0.2,140.49,140.47,0.17]
[1720446940631,20.2,140.49,140.47,0.17]
[1720446940804,0.2,140.49,140.47,22.247349]
[1720446941009,20.2,140.49,140.47,20.107349]
[1720446942303,20.2,140.49,140.47,10.392349]
[1720446942508,20.2,140.49,140.4,0.17]
[1720446942509,7.1184,140.48,140.4,0.17]
[1720446942715,27.119,140.47,140.41,23.1217582]
[1720446943011,7.1195,140.46,140.39,100.0]
[1720446943325,20.0,140.45,140.37,100.0]
[1720446943634,27.119,140.47,140.33,106.5574]
[1720446943635,6.2794,140.46,140.33,106.5574]
[1720446943935,58.62,140.45,140.33,106.5574]
[1720446944103,7.121,140.43,140.33,106.5574]
[1720446944304,20.0,140.42,140.37,100.0]
[1720446944734,20.0,140.44,140.35,100.0]
[1720446944914,27.1201,140.45,140.37,100.0]
[1720446945225,27.1201,140.45,140.38,0.34]
[1720446945415,20.0,140.45,140.38,0.34]
[1720446945597,20.0,140.45,140.38,0.17]
[1720446945803,7.1211,140.43,140.33,5.5574]
[1720446946029,37.8002,140.45,140.32,100.0]
[1720446946234,7.1223,140.41,140.32,100.0]
[1720446946420,7.1216,140.42,140.32,100.0]
[1720446946613,20.0,140.45,140.34,100.0]
[1720446946939,7.1206,140.44,140.34,100.0]
[1720446947150,6.2794,140.46,140.37,100.0]
[1720446947303,7.1199,140.45,140.38,0.51]
[1720446947502,13.3989,140.46,140.38,0.51]
[1720446947704,6.2794,140.46,140.38,0.34]
[1720446947904,7.1215,140.42,140.38,0.17]
[1720446948111,7.1202,140.45,140.37,0.17]
[1720446948316,13.3993,140.46,140.37,0.51]
[1720446948514,6.2794,140.46,140.37,0.51]
[1720446948717,20.0,140.45,140.37,0.51]
[1720446948917,7.1205,140.44,140.37,0.51]
[1720446949139,7.1214,140.42,140.37,0.17]
[1720446949353,20.0,140.41,140.37,0.17]
[1720446949547,20.0,140.43,140.37,0.17]
[1720446949849,20.0,140.43,140.38,0.17]
[1720446950050,20.0,140.45,140.38,0.34]
[1720446950429,20.0,140.45,140.39,0.17]
[1720446950945,27.12,140.45,140.39,0.17]
[1720446951123,6.2794,140.46,140.39,0.17]
[1720446951449,7.1191,140.47,140.4,0.17]
[1720446951749,7.1195,140.46,140.4,0.17]
[1720446951945,61.90820644,140.49,140.4,1.76406418]
[1720446952126,69.02620644,140.49,140.41,0.17]
[1720446952334,69.02620644,140.49,140.41,0.34]
[1720446952521,20.0,140.48,140.42,1.42386143]
[1720446952836,45.38850644,140.49,140.43,1.59376012]
[1720446953032,52.50640644,140.49,140.43,1.59376012]
[1720446953347,45.38850644,140.49,140.43,1.59376012]
[1720446953849,45.38850644,140.49,140.44,0.17]
[1720446954074,6.76850644,140.49,140.44,0.17]
[1720446954556,13.88650644,140.49,140.44,0.17]
[1720446954722,6.76850644,140.49,140.44,0.17]
[1720446955048,6.76850644,140.49,140.44,0.34]
[1720446955237,20.0,140.48,140.45,0.17]
[1720446955552,6.76850644,140.49,140.45,0.51]
[1720446956271,6.76850644,140.49,140.45,100.51]
[1720446956662,20.0,140.48,140.45,100.51]